bitfinex/quotes_ETHUSD_20240729
["timestamp","ask_amount","ask_price","bid_price","bid_amount"]
[1722271352914,3.05274,3275.8,3275.0,0.55]
[1722271353252,3.05274,3275.8,3274.6,6.0538]
[1722271353253,3.05291,3275.6,3274.6,3.05375]
[1722271353412,0.04917654,3275.5,3274.5,3.05384]
[1722271353595,0.04917654,3275.5,3273.8,3.05453]
[1722271353596,2.42549943,3275.5,3273.7,2.3596]
[1722271353761,3.05335,3275.1,3274.0,3.05427]
[1722271353967,3.05359,3274.9,3273.9,3.05439]
[1722271354165,0.04917654,3275.0,3273.3,3.05497]
[1722271354166,3.05395,3274.5,3273.3,3.05497]
[1722271354415,3.05395,3274.5,3273.4,3.360387]
[1722271354416,3.0541,3274.3,3273.4,3.360387]
[1722271354911,0.03411389,3274.2,3273.4,3.360387]
[1722271355116,0.03411389,3274.2,3273.6,3.05468]
[1722271355261,2.4536,3274.5,3272.6,5.46387]
[1722271355262,0.04917654,3274.8,3273.9,3.05445]
[1722271355606,5.8966,3275.0,3274.1,3.05426]
[1722271355607,0.03437786,3274.7,3274.1,3.05426]
[1722271355805,0.03437786,3274.7,3274.2,3.10564251]
[1722271356010,3.05282,3275.7,3274.2,3.10564251]
[1722271356011,3.05299,3275.5,3274.3,3.11077853]
[1722271356312,3.05299,3275.5,3274.5,3.05384]
[1722271356460,0.03465045,3275.4,3274.6,3.11050333]
[1722271356762,3.08774045,3275.4,3274.6,0.05670333]
[1722271357292,3.10234654,3275.3,3274.6,0.05670333]
[1722271357491,3.13716004,3275.2,3274.6,0.05670333]
[1722271357876,0.0346935,3275.2,3274.3,3.11072333]
[1722271358196,0.0346935,3275.2,3274.5,3.05389]
[1722271358502,0.0346935,3275.2,3274.4,0.37267086]
[1722271358503,3.10238654,3275.3,3274.6,0.05670289]
[1722271358659,0.03444829,3275.2,3274.6,0.05670289]
[1722271358868,0.08362483,3275.2,3274.3,3.05401]
[1722271359099,3.13687483,3275.2,3274.1,3.0542]
[1722271359293,3.13687483,3275.2,3274.2,3.60417]
[1722271359593,3.13687483,3275.2,3274.2,0.55]
[1722271359798,3.0534,3275.1,3274.2,0.55]
[1722271359994,3.10251654,3275.1,3274.2,0.55]
[1722271360186,0.03414336,3275.0,3274.2,0.55]
[1722271360389,0.03414336,3275.0,3273.9,3.05442]
[1722271360390,3.10275654,3274.9,3273.9,3.05442]
[1722271360590,3.10275654,3274.9,3273.6,3.05474]
[1722271360591,3.05397,3274.5,3273.6,3.05474]
[1722271360764,2.31087654,3274.4,3273.0,3.05526]
[1722271361101,2.34476801,3274.4,3273.6,3.05468]
[1722271361475,2.34476801,3274.4,3273.4,3.05484]
[1722271361674,3.05414,3274.3,3273.4,3.05484]
[1722271362001,3.13726556,3274.2,3273.3,3.05501]
[1722271362165,0.08308556,3274.2,3273.4,3.05492]
[1722271362495,0.08308556,3274.2,3273.4,3.360412]
[1722271362701,0.08308556,3274.2,3273.1,3.05518]
[1722271362702,3.13730556,3274.2,3273.1,3.05518]
[1722271362865,3.05437,3274.0,3273.1,3.05518]
[1722271363232,0.08288035,3273.9,3272.9,3.05535]
[1722271363360,0.08288035,3273.9,3272.7,3.05553]
[1722271363560,3.05498,3273.4,3272.4,3.0558]
[1722271363799,0.08288035,3273.9,3272.4,3.0558]
[1722271363800,3.10400654,3273.5,3272.6,3.05561]
[1722271364005,0.03342282,3273.3,3272.6,3.05561]
[1722271364191,0.03346037,3273.4,3272.7,3.05553]
[1722271364386,0.03355834,3273.2,3272.4,3.05578]
[1722271364589,3.08854342,3273.3,3272.4,3.666959]
[1722271364766,3.05546,3272.9,3272.0,3.05617]
[1722271364963,0.04917654,3272.9,3272.1,0.06111189]
[1722271365166,3.08887566,3272.8,3271.8,6.11272]
[1722271365390,3.08887566,3272.8,3271.9,3.05632]
[1722271365391,0.04917654,3272.7,3271.9,3.05632]
[1722271365603,0.04917654,3272.7,3272.0,3.05621]
[1722271365775,0.03310738,3272.6,3272.1,3.11723564]
[1722271366113,0.04917654,3272.8,3272.1,3.05612]
[1722271366264,0.03316474,3272.7,3271.9,3.05632]
[1722271366464,0.03316474,3272.7,3271.9,3.667601]
[1722271366707,0.03316474,3272.7,3272.0,3.05622]
[1722271366884,0.03316474,3272.7,3271.9,0.611281]
[1722271367406,0.03316474,3272.7,3271.9,3.667601]
[1722271367610,0.03316474,3272.7,3272.3,3.05593]
[1722271367818,0.03316474,3272.7,3272.4,0.06110933]
[1722271368007,3.0,3273.2,3272.5,3.05576]
[1722271368188,5.53095,3273.5,3272.5,3.05576]
[1722271368189,0.03296523,3272.6,3272.5,6.17262915]
[1722271368385,2.4761,3273.5,3273.0,3.05529]
[1722271368721,0.03322551,3273.4,3273.1,0.06109621]
[1722271368886,0.04917654,3274.0,3273.1,0.06109621]
[1722271369085,0.03213437,3273.9,3273.1,0.06109621]
[1722271369431,0.03213437,3273.9,3273.8,3.05455]
[1722271369587,0.03213437,3273.9,3273.8,3.360005]
[1722271369791,2.4094,3274.8,3274.0,3.0543]
[1722271370134,2.4094,3274.8,3273.9,3.05439]
[1722271370135,0.03250991,3274.7,3273.9,3.05439]
[1722271370281,0.03250991,3274.7,3273.9,0.02626062]
[1722271370480,0.08168645,3274.7,3274.0,3.0543]
[1722271370722,0.08168645,3274.7,3274.3,3.05401]
[1722271370723,0.03250991,3274.7,3274.3,3.05401]
[1722271370932,0.03250991,3274.7,3274.1,0.02629193]
[1722271370933,3.05316,3275.3,3274.0,0.33860156]
[1722271371088,0.03267729,3275.2,3274.4,3.05395]
[1722271371287,0.08185383,3275.2,3274.4,3.05395]
[1722271371688,0.03267729,3275.2,3274.6,3.05377]
[1722271371955,2.4079,3275.4,3274.7,3.11471702]
[1722271372090,0.03266919,3275.1,3274.8,0.06106338]
[1722271372287,2.4079,3275.4,3274.6,3.4894717]
[1722271372647,0.08193902,3275.3,3274.6,3.05374]
[1722271372790,3.05325,3275.2,3274.3,3.05406]
[1722271372990,0.04917654,3275.1,3274.3,3.05406]
[1722271373262,0.03263259,3275.1,3274.4,3.0539]
[1722271373445,0.03263259,3275.1,3274.5,0.30539]
[1722271373937,0.04917654,3275.3,3274.5,3.07456019]
[1722271373938,0.03248342,3275.0,3274.5,3.07456019]
[1722271374244,0.03248342,3275.0,3274.7,3.0537]
[1722271374446,0.03248342,3275.0,3274.0,0.3058]
[1722271374447,0.03248342,3275.0,3274.3,3.05405]
[1722271374733,0.03247767,3274.9,3274.5,3.05384]
[1722271374889,0.03247767,3274.9,3274.6,0.06106491]
[1722271375086,2.4079,3275.4,3274.6,3.11479491]
[1722271375288,0.03264378,3275.3,3274.9,3.05351]
[1722271375487,0.04917654,3275.6,3274.9,3.05351]
[1722271375920,0.03273508,3275.5,3274.9,3.05351]
[1722271376128,0.03273508,3275.5,3275.0,0.06106343]
[1722271376299,2.3982,3276.0,3275.2,3.05322]
[1722271376504,0.03157021,3275.9,3275.0,3.11443343]
[1722271376915,0.08074675,3275.9,3275.0,3.11443343]
[1722271377241,0.08074675,3275.9,3275.1,3.05333]
[1722271377837,0.08074675,3275.9,3275.0,3.05342]
[1722271378048,3.0527,3275.8,3274.8,3.05356]
[1722271378394,0.08119694,3275.7,3274.8,3.05356]
[1722271378725,0.08119694,3275.7,3274.4,0.55]
[1722271378726,3.13398694,3275.7,3274.4,3.60396]
[1722271378937,6.13398694,3275.7,3274.4,3.60396]
[1722271379132,3.05302,3275.5,3274.4,0.55]
[1722271379423,3.05302,3275.5,3274.3,3.05403]
[1722271379424,0.04917654,3275.4,3274.3,3.05403]
[1722271379782,0.08099096,3275.4,3274.5,3.05383]
[1722271380125,0.08099096,3275.4,3274.3,3.359433]
[1722271380348,0.08099096,3275.4,3273.9,3.0]
[1722271380349,3.05325,3275.2,3274.2,3.05417]
[1722271380695,3.10190654,3275.8,3273.2,0.14355255]
[1722271380696,5.41264,3275.0,3273.7,3.05457]
[1722271380830,0.04917654,3274.9,3273.5,3.05482]
[1722271381145,0.08074402,3274.9,3274.1,3.05419]
[1722271381778,0.08074402,3274.9,3273.9,3.05442]
[1722271381958,0.08074402,3274.9,3274.3,3.05407]
[1722271382146,0.08074402,3274.9,3274.1,3.05421]
[1722271382696,0.08074402,3274.9,3273.2,3.05506]
[1722271382697,3.05427,3274.1,3272.2,0.95089786]
[1722271382979,3.05427,3274.1,3272.0,9.50801381]
[1722271382980,0.04917654,3274.0,3273.3,3.05501]
[1722271383181,0.04917654,3274.0,3272.0,1.5]
[1722271383182,0.04917654,3274.0,3272.9,3.05533]
[1722271383469,0.03103776,3273.9,3273.3,3.05495]
[1722271384230,0.03103776,3273.9,3273.3,3.11609408]
[1722271384435,0.03103776,3273.9,3273.3,0.06109408]
[1722271384636,6.10335654,3274.2,3273.2,3.0551]
[1722271384855,6.10335654,3274.2,3273.0,3.05527]
[1722271384856,0.03075845,3273.8,3273.0,3.05527]
[1722271385063,0.04917654,3273.9,3273.0,0.6721827]
[1722271385279,0.04917654,3273.9,3272.7,0.3058]
[1722271385280,0.03059367,3273.7,3272.7,0.3058]
[1722271385433,0.03074063,3273.8,3272.8,3.60542]
[1722271385637,0.030691,3273.6,3273.0,3.05523]
[1722271385943,6.05422,3274.2,3273.4,3.05486]
[1722271385944,0.03053932,3273.5,3273.4,3.05486]
[1722271386146,0.04917654,3274.7,3273.5,3.05476]
[1722271386350,1.24146391,3275.7,3273.9,3.05445]
[1722271386351,0.03091998,3274.6,3273.9,3.05445]
[1722271386581,3.05342,3275.1,3274.1,3.05421]
[1722271386900,0.03083887,3274.5,3274.0,0.0610777]
[1722271387049,0.03083887,3274.5,3273.5,3.05479]
[1722271387050,0.03083887,3274.5,3274.4,6.10798]
[1722271387392,1.24187367,3276.7,3274.4,6.10798]
[1722271387393,5.36161,3276.1,3275.1,3.05332]
[1722271387531,0.04917654,3276.0,3275.1,3.05332]
[1722271387732,0.04917654,3276.0,3274.9,3.05347]
[1722271387733,0.02935593,3275.9,3274.9,3.05347]
[1722271387961,0.02935593,3275.9,3274.4,3.0]
[1722271387962,0.04917654,3275.8,3274.5,3.05387]
[1722271388195,0.04917654,3275.8,3274.3,3.05406]
[1722271388196,3.05322,3275.3,3274.3,3.05406]
[1722271388481,0.02940892,3275.7,3274.6,3.05379]
[1722271388482,0.04917654,3275.4,3274.6,3.05379]
[1722271388700,6.88623683,3276.3,3274.2,0.55]
[1722271388701,0.02898481,3275.2,3274.7,3.05364]
[1722271388853,0.02902231,3275.3,3274.5,3.05387]
[1722271389055,0.04917654,3275.8,3274.6,3.909187]
[1722271389626,0.04917654,3275.8,3274.8,3.05359]
[1722271389738,0.02930027,3275.7,3274.9,3.60352]
[1722271389934,0.02930027,3275.7,3274.9,0.55]
[1722271390136,0.07847681,3275.7,3274.9,0.55]
[1722271390343,0.07847681,3275.7,3274.8,3.0536]
[1722271390579,0.07847681,3275.7,3274.9,0.55]
[1722271390995,0.07847681,3275.7,3274.5,3.05388]
[1722271391302,0.07847681,3275.7,3273.4,5.666686]
[1722271391303,3.05323,3275.3,3273.7,3.0546]
[1722271391457,0.04917654,3275.2,3274.0,3.05433]
[1722271391640,0.04917654,3275.2,3274.0,3.05435]
[1722271391641,2.2804,3275.1,3274.0,3.05435]
[1722271391841,0.04917654,3275.0,3274.0,3.05435]
[1722271392084,0.07809538,3275.0,3273.9,0.60546]
[1722271392283,3.05353,3274.9,3273.9,3.65989]
[1722271392454,0.07809538,3275.0,3273.9,3.65989]
[1722271392642,3.13158538,3275.0,3274.0,3.05435]
[1722271392963,0.07809538,3275.0,3273.9,0.91126]
[1722271393139,0.02891884,3275.0,3274.6,3.05374]
[1722271393538,2.463,3275.7,3274.6,3.05373]
[1722271393539,3.0,3275.6,3274.6,3.05373]
[1722271393774,0.02910637,3275.5,3274.7,3.05365]
[1722271393975,0.04917654,3275.5,3274.7,3.05365]
[1722271394288,0.02912373,3275.4,3274.7,3.05365]
[1722271394450,0.02912373,3275.4,3274.1,3.36001]
[1722271394451,0.02912373,3275.4,3274.2,3.05417]
[1722271394659,0.02912373,3275.4,3274.8,3.05359]
[1722271395198,0.02912373,3275.4,3274.6,3.05372]
[1722271395199,0.02910451,3275.3,3274.7,0.06106516]
[1722271395723,3.10205654,3275.6,3274.7,0.06106516]
[1722271395840,3.08240017,3275.2,3274.3,0.55]
[1722271396043,0.04917654,3275.1,3274.3,0.55]
[1722271396340,0.04917654,3275.1,3274.0,3.05433]
[1722271396341,0.0783513,3275.1,3274.0,3.05433]
[1722271396551,3.05353,3274.9,3274.0,3.05433]
[1722271396752,3.05372,3274.7,3273.8,3.05452]
[1722271396966,0.02867262,3274.6,3273.8,3.665451]
[1722271397280,3.10291654,3274.7,3273.8,0.610921]
[1722271397483,0.02909777,3274.5,3273.7,6.05459]
[1722271397644,0.02913529,3274.6,3273.7,6.05459]
[1722271397842,0.02906024,3274.4,3273.7,3.0]
[1722271398082,0.02909777,3274.5,3274.4,3.05399]
[1722271398395,3.10223654,3275.4,3274.4,0.65507333]
[1722271398555,3.05331,3275.2,3274.1,6.10843]
[1722271398768,3.05331,3275.2,3274.0,0.3058]
[1722271398769,3.05349,3275.0,3274.0,3.0543]
[1722271398974,2.2959,3274.8,3273.8,0.55]
[1722271399173,3.05386,3274.6,3273.7,3.05459]
[1722271399345,3.05386,3274.6,3273.8,0.55]
[1722271399545,0.04917654,3274.7,3273.8,3.05449]
[1722271400045,3.05396,3274.5,3273.6,3.05472]
[1722271400249,3.10317654,3274.4,3273.5,3.05477]
[1722271400486,0.04917654,3274.4,3273.7,3.05464]
[1722271400644,0.04917654,3274.7,3273.5,0.6415186]
[1722271400848,2.2959,3274.8,3273.9,3.05445]
[1722271401165,2.2959,3274.8,3273.5,0.3058]
[1722271401367,3.0,3275.1,3274.4,3.05398]
[1722271401551,2.3954,3275.4,3274.6,3.05379]
[1722271401752,2.3954,3275.4,3274.7,3.05366]
[1722271401991,2.3954,3275.4,3274.8,3.11467481]
[1722271402167,2.353,3276.0,3275.2,3.05318]
[1722271402341,2.353,3276.0,3275.0,3.05335]
[1722271402342,0.04917654,3275.9,3275.0,3.05335]
[1722271402550,3.10179654,3275.9,3274.7,0.31147295]
[1722271402859,3.05318,3275.3,3274.0,3.05433]
[1722271403080,0.04917654,3275.4,3274.4,3.05398]
[1722271403244,0.04917654,3275.4,3274.6,3.05373]
[1722271403449,0.04917654,3275.4,3274.5,3.05384]
[1722271403745,3.0527,3275.8,3274.6,3.11481941]
[1722271403946,3.0527,3275.8,3274.6,3.11483941]
[1722271404180,3.0,3275.7,3274.6,3.11483941]
[1722271404378,3.05287,3275.6,3274.7,3.05364]
[1722271404578,3.0,3275.7,3274.8,0.06106494]
[1722271404787,3.05265,3275.9,3274.8,0.06106494]
[1722271404788,0.04917654,3275.8,3274.9,0.31147049]
[1722271404965,0.04917654,3275.8,3274.7,3.05367]
[1722271404966,3.10193654,3275.8,3274.7,3.05367]
[1722271405156,3.05295,3275.6,3274.5,3.05386]
[1722271405362,2.97536423,3276.0,3274.2,0.55]
[1722271405363,0.04917654,3275.5,3274.7,3.05362]
[1722271405686,3.05274,3275.8,3274.9,3.05349]
[1722271406026,3.10201654,3275.7,3274.8,3.11465427]
[1722271406159,3.0529,3275.6,3274.8,0.06106427]
[1722271406790,3.05307,3275.4,3274.3,3.05404]
[1722271407097,3.05307,3275.4,3274.4,6.60392]
[1722271407257,3.05307,3275.4,3274.4,0.55]
[1722271407258,0.04917654,3275.3,3274.4,0.55]
[1722271407456,5.48918,3275.2,3273.9,3.0544]
[1722271407660,3.05345,3275.0,3273.9,3.05438]
[1722271407870,0.04917654,3274.9,3273.6,3.05473]
[1722271408091,5.48918,3275.2,3274.1,3.05422]
[1722271408092,2.4359,3275.2,3274.1,3.05422]
[1722271408282,0.93370834,3275.8,3274.9,3.05347]
[1722271408283,2.3598,3275.8,3274.9,3.05347]
[1722271408596,2.3598,3275.8,3275.0,3.11440869]
[1722271408894,2.3598,3275.8,3275.0,0.06105869]
[1722271409120,2.3598,3275.8,3274.1,3.3058]
[1722271409121,0.04917654,3275.7,3274.7,3.05363]
[1722271409282,3.10195654,3275.7,3274.8,0.55]
[1722271410017,6.10588,3275.6,3274.8,0.55]
[1722271410219,5.41253,3275.8,3274.8,3.05361]
[1722271410427,0.04917654,3275.7,3274.8,3.05361]
[1722271410578,3.05302,3275.5,3274.6,3.0538]
[1722271410760,3.10229654,3275.4,3274.4,3.05391]
[1722271410965,3.05318,3275.3,3274.5,0.55]
[1722271411163,0.04917654,3275.7,3274.2,3.05417]
[1722271411164,0.04917654,3275.2,3274.2,3.05417]
[1722271411494,3.05349,3275.0,3274.1,3.36007]
[1722271411810,0.04917654,3274.9,3274.1,3.05427]
[1722271411962,0.02776904,3274.8,3274.3,3.05405]
[1722271412180,0.04917654,3275.0,3274.4,0.06107315]
[1722271412382,0.02775165,3274.9,3274.1,3.05419]
[1722271412976,0.07692819,3274.9,3273.9,3.05437]
[1722271413178,0.02775165,3274.9,3274.1,3.05422]
[1722271413396,0.04917654,3275.1,3274.1,3.05422]
[1722271413603,2.2683,3274.9,3273.8,3.05453]
[1722271413826,3.05372,3274.7,3273.8,3.05453]
[1722271414008,3.05372,3274.7,3273.7,3.360033]
[1722271414009,3.05372,3274.7,3273.9,3.05445]
[1722271414326,0.02784559,3274.6,3273.9,3.05445]
[1722271414729,0.04917654,3274.8,3273.9,3.3904423]
[1722271414900,0.02786677,3274.5,3274.1,3.05426]
[1722271415107,0.04917654,3274.8,3274.1,3.05426]
[1722271415318,0.02782925,3274.4,3274.1,3.05426]
[1722271415633,0.02773302,3274.3,3273.7,0.305473]
[1722271415780,0.02773302,3274.3,3273.6,3.05468]
[1722271415995,0.02773302,3274.3,3273.4,3.05485]
[1722271416209,0.02773302,3274.3,3273.0,3.08]
[1722271416497,0.02773302,3274.3,3273.6,3.05473]
[1722271416716,0.02773302,3274.3,3273.5,3.05483]
[1722271416926,0.02773302,3274.3,3273.3,3.05499]
[1722271416927,0.02773302,3274.3,3273.6,3.05471]
[1722271417307,0.04917654,3274.4,3273.6,3.05471]
[1722271417699,0.04917654,3274.4,3273.2,3.05503]
[1722271417700,0.02776766,3274.3,3273.2,3.05503]
[1722271417950,3.08190766,3274.3,3273.3,3.636083]
[1722271418153,3.08190766,3274.3,3273.0,6.13525]
[1722271418154,2.4161,3273.9,3273.0,3.05525]
[1722271418318,0.04917654,3273.8,3273.0,3.05525]
[1722271418505,0.07645247,3273.8,3272.8,3.05543]
[1722271419125,0.07645247,3273.8,3272.9,3.05534]
[1722271419292,3.13102247,3273.8,3272.9,3.05534]
[1722271419491,0.04917654,3273.7,3272.9,3.05534]
[1722271419741,0.04917654,3273.7,3272.7,0.3058]
[1722271419742,3.10385654,3273.7,3272.7,0.3058]
[1722271419926,3.05498,3273.4,3272.7,0.3058]
[1722271420137,0.04917654,3273.3,3272.7,0.3058]
[1722271420496,3.08408,3273.2,3272.7,0.3058]
[1722271420693,2.341,3273.0,3271.9,0.3058]
[1722271420941,2.341,3273.0,3271.9,3.698258]
[1722271420942,3.10457654,3272.9,3271.9,3.698258]
[1722271421105,0.07671233,3272.9,3272.1,3.36188]
[1722271421751,0.07671233,3272.9,3271.9,0.336218]
[1722271421752,0.02753579,3272.9,3272.5,0.3058]
[1722271422068,5.47859,3273.6,3272.7,0.3058]
[1722271422069,2.4238,3273.6,3272.7,0.3058]
[1722271422363,0.02914895,3272.8,3272.7,0.3058]
[1722271422498,3.05518,3273.2,3272.7,0.3058]
[1722271422700,3.05539,3273.0,3272.7,0.3058]
[1722271422924,3.10456654,3272.9,3272.1,0.3058]
[1722271423308,3.08481424,3272.8,3272.1,0.3058]
[1722271423525,0.03917654,3272.7,3272.1,0.3058]
[1722271424046,0.03137699,3272.6,3272.0,3.36202]
[1722271424253,0.03137699,3272.6,3271.9,3.392528]
[1722271424254,0.03137699,3272.6,3272.2,0.3058]
[1722271424731,3.09484654,3272.6,3272.2,0.3058]
[1722271424937,0.03107973,3272.5,3272.2,0.3058]
[1722271425159,0.03107973,3272.5,3271.6,3.36233]
[1722271425451,3.05594,3272.4,3271.6,0.3058]
[1722271425642,0.03917654,3272.3,3271.6,0.3058]
[1722271427717,3.05605,3272.2,3271.6,0.3058]
[1722271427918,0.03917654,3272.1,3271.6,0.3058]
[1722271428218,3.09531654,3272.1,3271.6,0.3058]
[1722271428865,0.03917654,3272.1,3271.2,3.3627]
[1722271429220,0.03917654,3272.5,3271.6,3.05655]
[1722271429584,3.09499654,3272.5,3271.6,3.05655]
[1722271429784,0.03917654,3272.5,3271.7,3.0565]
[1722271430206,0.03917654,3272.5,3271.8,3.05636]
[1722271430527,0.03917654,3272.5,3271.9,6.11252]
[1722271430685,0.03917654,3272.6,3272.0,3.05622]
[1722271431061,2.3536,3272.7,3272.1,0.06112175]
[1722271431262,2.3536,3272.7,3271.9,3.05631]
[1722271431504,2.3536,3272.7,3271.9,3.667517]
[1722271431767,2.3536,3272.7,3271.7,3.05644]
[1722271431768,0.03917654,3272.6,3271.7,3.05644]
[1722271431968,3.05576,3272.5,3271.5,3.36242]
[1722271432263,0.03917654,3272.4,3271.6,3.05659]
[1722271432462,0.03917654,3272.4,3271.7,3.0565]
[1722271432717,2.3536,3272.7,3271.6,0.611321]
[1722271432718,2.3536,3272.7,3271.8,0.06112396]
[1722271432861,3.45,3273.4,3271.3,3.39312]
[1722271432862,0.03917654,3273.0,3272.3,3.05588]
[1722271433063,0.03917654,3273.2,3272.3,3.05588]
[1722271433267,0.03917654,3273.2,3272.5,3.05576]
[1722271433534,0.03917654,3273.2,3272.6,3.05565]
[1722271433819,0.03917654,3273.2,3272.3,0.06111143]
[1722271433966,2.2525,3273.4,3272.6,3.05566]
[1722271434166,2.2525,3273.4,3272.8,3.05545]
[1722271434481,3.0545,3273.9,3273.0,3.05524]
[1722271434482,3.05453,3273.9,3273.0,3.05524]
[1722271434829,3.05453,3273.9,3272.8,3.666561]
[1722271434830,3.09378654,3273.8,3272.8,3.666561]
[1722271434992,0.03917654,3273.7,3272.6,3.05564]
[1722271435234,0.03917654,3273.7,3272.4,3.05583]
[1722271435235,3.05492,3273.4,3272.4,3.05578]
[1722271435524,3.05492,3273.4,3272.4,3.05581]
[1722271435525,3.09422654,3273.3,3272.4,3.05581]
[1722271435663,0.03917654,3273.2,3271.9,2.9972]
[1722271435860,3.05476,3273.6,3272.6,3.05559]
[1722271435861,0.03917654,3273.3,3272.6,3.05559]
[1722271436264,3.0,3273.7,3273.0,3.05522]
[1722271436459,3.0,3273.9,3273.0,3.05522]
[1722271436735,3.03917654,3273.9,3272.8,3.05543]
[1722271436864,3.03917654,3273.9,3272.4,3.05584]
[1722271437060,3.05509,3273.3,3272.4,0.305584]
[1722271437265,0.03917654,3273.2,3272.5,3.05575]
[1722271437503,0.03917654,3273.2,3272.3,0.3058]
[1722271437679,0.03917654,3273.2,3272.4,3.05584]
[1722271438019,0.03917654,3273.2,3272.2,3.05596]
[1722271438165,0.03917654,3273.2,3272.3,3.05588]
[1722271438934,0.03917654,3273.2,3272.5,3.0557]
[1722271439231,3.05502,3273.3,3272.3,3.05587]
[1722271439412,0.03917654,3273.2,3272.3,3.05587]
[1722271439615,0.03917654,3273.2,3272.4,3.05583]
[1722271439985,0.03917654,3273.2,3272.6,3.05565]
[1722271440255,0.03917654,3273.2,3272.2,3.4221417]
[1722271440405,2.3213,3273.1,3271.9,0.55]
[1722271440747,5.41562,3272.2,3271.3,0.3058]
[1722271440952,3.09531654,3272.1,3271.3,0.3058]
[1722271441226,0.03917654,3272.1,3271.3,0.3058]
[1722271442251,3.05625,3272.0,3271.3,0.3058]
[1722271442437,3.05643,3271.8,3271.3,0.3058]
[1722271442598,0.03917654,3271.9,3270.8,3.07734]
[1722271442599,3.09570654,3271.7,3270.8,0.3258]
[1722271442792,0.03917654,3271.7,3270.8,3.721474]
[1722271443099,0.03917654,3271.7,3271.2,0.3058]
[1722271443489,3.05624,3272.0,3271.2,0.3058]
[1722271443490,0.03917654,3271.8,3271.2,0.3058]
[1722271444145,0.03917654,3271.8,3271.1,0.3058]
[1722271444955,3.05633,3271.9,3270.8,3.415674]
[1722271444956,0.03917654,3271.9,3271.3,0.3058]
[1722271445237,0.03917654,3272.1,3271.3,0.3058]
[1722271445444,3.03917654,3272.1,3271.3,0.3058]
[1722271445584,3.05634,3271.9,3271.3,0.3058]
[1722271445786,3.09565654,3271.8,3271.3,0.3058]
[1722271446067,0.03917654,3271.7,3270.9,0.3058]
[1722271446189,3.09570654,3271.7,3270.9,0.644108]
[1722271446393,3.05669,3271.6,3270.9,0.3058]
[1722271446820,0.03917654,3271.7,3270.9,0.3058]
[1722271447023,0.03917654,3271.7,3271.0,0.3058]
[1722271447427,3.0567,3271.5,3271.0,0.3058]
[1722271447997,5.41559,3272.2,3270.8,0.02]
[1722271447998,3.05691,3271.3,3270.8,0.02]
[1722271448152,6.11452,3270.9,3270.8,0.02]
[1722271448304,12.56652,3270.9,3270.8,0.02]
[1722271448658,15.62378,3270.9,3270.8,0.02]
[1722271449050,21.28898,3270.9,3270.8,0.02]
[1722271449358,11.56672,3270.9,3270.8,0.02]
[1722271449517,8.50946,3270.9,3270.8,0.02]
[1722271450356,3.05679,3271.4,3270.8,0.02]
[1722271450357,3.05692,3271.3,3270.8,0.02]
[1722271450555,3.05698,3271.2,3270.8,0.02]
[1722271450769,5.3843,3271.4,3270.8,0.02]
[1722271450770,0.03917654,3271.1,3270.8,0.02]
[1722271451127,3.05726,3270.9,3270.8,0.02]
[1722271451340,6.11452,3270.9,3270.8,0.02]
[1722271451645,9.17178,3270.9,3270.8,0.02]
[1722271451845,12.17178,3270.9,3270.8,0.02]
[1722271452168,22.0676639,3270.9,3270.8,0.02]
[1722271452452,22.2234039,3270.9,3270.8,0.02]
[1722271452675,25.28065418,3270.9,3270.8,0.02]
[1722271452966,25.28063387,3270.9,3270.0,0.01]
[1722271453135,14.89553,3270.1,3270.0,0.01]
[1722271453311,14.44353,3270.1,3270.0,0.01]
[1722271453753,11.38552,3270.1,3270.0,0.01]
[1722271454153,5.32751,3270.1,3270.0,0.01]
[1722271454595,8.38552,3270.1,3270.0,0.01]
[1722271454800,14.44353,3270.1,3270.0,0.01]
[1722271455311,11.38552,3270.1,3270.0,0.01]
[1722271456310,14.44353,3270.1,3270.0,0.01]
[1722271456652,11.38552,3270.1,3270.0,0.01]
[1722271457669,12.17403,3270.1,3270.0,0.01]
[1722271457983,6.05801,3270.1,3270.0,0.01]
[1722271458530,3.05754,3270.6,3270.0,0.01]
[1722271458672,3.05783,3270.3,3270.0,0.01]
[1722271459031,0.03917654,3270.2,3270.0,0.01]
[1722271459171,3.05736,3270.8,3270.0,0.01]
[1722271459518,2.3508,3271.0,3270.0,0.01]
[1722271459717,3.05603,3272.3,3270.0,3.06801]
[1722271459718,3.05708,3271.1,3270.0,3.06801]
[1722271459918,3.05718,3271.0,3270.1,0.36795507]
[1722271460132,0.03917654,3270.9,3270.1,0.36795507]
[1722271460291,0.03917654,3270.9,3270.0,0.01]
[1722271460292,3.05736,3270.8,3270.0,0.01]
[1722271460614,3.05742,3270.8,3270.0,0.01]
[1722271460766,5.5638,3271.6,3270.0,0.01]
[1722271460767,3.05801,3270.1,3270.0,0.01]
[1722271460966,3.213,3271.2,3270.0,0.01]
[1722271460967,3.05789,3270.3,3270.0,0.01]
[1722271461209,0.03917654,3270.2,3270.0,0.01]
[1722271461580,3.05801,3270.1,3270.0,0.01]
[1722271461784,6.11602,3270.1,3270.0,0.01]
[1722271462022,3.05801,3270.1,3270.0,0.01]
[1722271462166,3.09718654,3270.1,3270.0,0.01]
[1722271462370,3.0,3270.8,3270.0,0.01]
[1722271462605,3.05736,3270.8,3270.0,0.01]
[1722271462876,3.0,3270.7,3270.0,0.01]
[1722271463109,3.05801,3270.1,3270.0,0.01]
[1722271463915,14.49310654,3270.1,3270.0,0.01]
[1722271464142,17.70610654,3270.1,3270.0,0.01]
[1722271464285,17.70610654,3270.1,3269.7,0.14562]
[1722271464286,9.17487,3269.8,3269.7,0.14562]
[1722271464488,9.11658,3269.8,3269.7,0.14562]
[1722271464914,6.05829,3269.8,3269.7,0.14562]
[1722271465113,3.05829,3269.8,3269.7,0.14562]
[1722271465420,2.2799,3270.1,3269.7,0.14562]
[1722271465421,3.05804,3270.1,3269.7,0.14562]
[1722271465606,0.03917654,3270.0,3269.7,0.14562]